[Event "Czech Extraliga 2023-24"]
[Site "Czech Republic"]
[Date "2024.04.06"]
[Round "9.2"]
[White "Nguyen, Thai Dai Van"]
[Black "Sulypa, Oleksandr"]
[Result "1-0"]
[ECO "A29"]
[WhiteElo "2643"]
[BlackElo "2458"]
[Annotator "TA"]
[PlyCount "111"]
[EventDate "2023.10.14"]
[EventCountry "CZE"]
[SourceTitle "playchess.com"]
[Source "ChessBase"]
[SourceQuality "1"]
[TimeControl "40/5400+30:1800+30"]

{[%evp 32,111,64,72,56,77,64,62,66,56,58,57,61,51,49,52,38,71,63,33,22,17,80,82,111,116,112,113,192,188,196,203,237,239,245,201,235,249,227,153,211,201,209,191,223,223,252,272,284,275,234,258,337,336,363,364,333,367,361,337,330,290,275,294,401,345,370,379,385,369,448,447,458,438,551,521,29971,29972,29975,29976,29976,29975]} 1. c4 e5 2. g3 Nf6 3. Bg2 d5 4. cxd5 Nxd5 5. Nc3 Nb6 6. Nf3 Nc6 7. O-O Be7 8. b3 O-O 9. Bb2 Be6 10. Rc1 f6 11. Qc2 $5 {[%mdl 4] An interesting side line. A29: English Opening: Four Knights Variation with 4 g3.} Nb4 12. Qe4 c5 13. Nh4 Nc6 $146 ({Predecessor:} 13... Nxa2 14. Nxa2 Rf7 15. Nf5 Qxd2 16. Nxe7+ Rxe7 17. Qb1 Qxe2 18. Nc3 Qg4 19. Ba3 Rd7 20. Bxc5 Nd5 21. b4 Nxc3 22. Rxc3 Rc8 23. Rcc1 {1-0 Kovalenko,I (2321)-Almeida,R (2223) RM-2021-0-00235 2020}) 14. Nf5 Qd7 15. Nxe7+ Qxe7 16. Ba3 Rfd8 17. Qe3 Nd4 18. f4 exf4 19. gxf4 Rd7 20. Qf2 Nd5 21. e3 Nxc3 22. Rxc3 Nb5 23. Bxc5 Qe8 24. Rcc1 Bd5 25. Bxd5+ Rxd5 26. a4 Nd6 (26... b6 $1 $11) 27. Qg2 $16 Rd3 28. Bxd6 Rxd6 29. Rc7 $1 (29. Qxb7 $6 Rxd2 30. Rc7 Qg6+ (30... Qxe3+ $2 31. Kh1 $18) 31. Kh1 Re8 $11) 29... Qg6 (29... Rd7 $16 30. Qxb7 (30. Rxb7 Rxb7 31. Qxb7 Rd8 $16) 30... Rad8) 30. Qxg6 $18 hxg6 31. d4 (31. Rxb7 $6 Rxd2 32. Rf2 Rd1+ 33. Kg2 a5 $16) 31... Re8 32. Kf2 (32. Rxb7 Rxe3 33. Rc1 Kh7 $16 (33... Rxd4 $2 {too greedy.} 34. Rc8+ Kh7 35. Rbb8 $18)) 32... Rb6 33. Rb1 Rbe6 34. Re1 ({Less strong is} 34. Rxb7 Rxe3 $16) 34... Rb6 35. Rc3 f5 (35... Kf7 $16 {keeps fighting.} 36. h4 Re7) 36. Rec1 Kf7 37. Rd3 Kf6 38. h4 a6 39. Rc7 Rh8 40. Kg3 Re8 41. Rdc3 Rd8 42. Kf3 Re8 43. Rd7 Re7 44. Rd8 Re4 45. Rf8+ Ke7 46. Rb8 Kd7 47. Rbc8 Kd6 48. a5 Rb5 49. R8c5 Rxc5 50. Rxc5 Re6 51. h5 gxh5 52. Rxf5 g6 53. Rg5 Ke7 54. Re5 Rxe5 55. dxe5 Ke6 56. e4 1-0

[Event "Czech Extraliga 2023-24"]
[Site "Czech Republic"]
[Date "2024.04.06"]
[Round "9.2"]
[White "Samunenkov, Ihor"]
[Black "Kobo, Ori"]
[Result "1/2-1/2"]
[ECO "E11"]
[WhiteElo "2548"]
[BlackElo "2530"]
[Annotator "RC"]
[PlyCount "183"]
[EventDate "2023.10.14"]
[EventCountry "CZE"]
[SourceTitle "playchess.com"]
[Source "ChessBase"]
[SourceQuality "1"]
[TimeControl "40/5400+30:1800+30"]

1. d4 {[%emt 0:00:06]} d5 {[%emt 0:00:15]} 2. c4 {[%emt 0:00:23]} e6 {[%emt 0:00:20]} 3. Nf3 {[%emt 0:00:12]} Nf6 {[%emt 0:00:21]} 4. g3 {[%emt 0:00:11]} Bb4+ {[%emt 0:00:44]} 5. Bd2 {[%emt 0:00:17]} a5 {[%emt 0:00:46]} 6. Qc2 {[%emt 0:00:17]} O-O {[%emt 0:00:24]} 7. Bg2 {[%emt 0:00:07]} c5 {[%emt 0:00:26]} 8. cxd5 {[%emt 0:00:21]} cxd4 {[%emt 0:00:12]} 9. a3 {[%emt 0:00:10]} Bxd2+ {[%emt 0:04:35]} 10. Qxd2 {[%emt 0:00:08]} Qxd5 {[%emt 0:00:12]} 11. Qxd4 {[%emt 0:00:10]} Qxd4 {[%emt 0:00:12]} 12. Nxd4 {[%emt 0:00:07]} Ra7 {[%emt 0:00:05]} 13. Nd2 {[%emt 0:20:16]} Bd7 {[%emt 0:23:19]} 14. Nc4 {[%emt 0:15:26]} b5 {[%emt 0:11:28]} 15. Ne5 {[%emt 0:11:12]} Rc8 {[%emt 0:01:29]} 16. Kd2 {[%emt 0:11:22]} Be8 {[%emt 0:29:12]} 17. Rhc1 {[%emt 0:02:07]} Rac7 {[%emt 0:03:46]} 18. Rxc7 {[%emt 0:17:47]} Rxc7 {[%emt 0:00:02]} 19. b4 {[%emt 0:00:11]} Ra7 {[%emt 0:08:38]} 20. Rc1 {[%emt 0:01:01]} axb4 {[%emt 0:00:33]} 21. Rc8 {[%emt 0:14:38]} bxa3 {[%emt 0:04:27]} 22. Rxb8 {[%emt 0:00:12]} a2 {[%emt 0:00:10]} 23. Nb3 {[%emt 0:00:21]} a1=Q {[%emt 0:01:16]} 24. Nxa1 Rxa1 {[%emt 0:00:05]} 25. Ng4 {[%emt 0:00:25]} Ra2+ {[%emt 0:00:48]} 26. Kd3 {[%emt 0:04:28]} Ra3+ {[%emt 0:00:54]} 27. Kd2 {[%emt 0:00:11]} Ra2+ {[%emt 0:00:15]} 28. Kd1 {[%emt 0:01:08]} Ra1+ {[%emt 0:00:52]} 29. Kc2 {[%emt 0:00:05]} Ra2+ {[%emt 0:01:21]} 30. Kb3 {[%emt 0:00:56]} Rxe2 {[%emt 0:00:16]} 31. Bf1 {[%emt 0:00:47]} Re1 {[%emt 0:00:40]} 32. Nxf6+ gxf6 {[%emt 0:00:02]} 33. Rxe8+ {[%emt 0:00:43]} Kg7 {[%emt 0:00:02]} 34. Bd3 {[%emt 0:01:11]} Rh1 {[%emt 0:01:16]} 35. Rc8 {[%emt 0:00:28]} Rxh2 {[%emt 0:00:32]} 36. Rc2 {[%emt 0:00:16]} f5 {[%emt 0:04:00]} 37. Bxb5 {[%emt 0:00:20]} Kf6 {[%emt 0:00:52]} 38. Kc3 {[%emt 0:00:58]} f4 {[%emt 0:02:15]} 39. gxf4 {[%emt 0:00:30]} Kf5 {[%emt 0:00:50]} 40. Kd3 {[%emt 0:00:30]} Kxf4 {[%emt 0:00:35]} 41. Bc6 {[%emt 0:30:24]} f5 {[%emt 0:06:05]} 42. Rc4+ {[%emt 0:00:00]} Kg5 {[%emt 0:01:02]} 43. Ke3 {[%emt 0:00:00]} e5 {[%emt 0:05:23]} 44. Bd7 {[%emt 0:00:00]} e4 {[%emt 0:04:46]} 45. f4+ {[%emt 0:00:00]} exf3 {[%emt 0:02:30]} 46. Rc5 {[%emt 0:00:00]} f2 {[%emt 0:01:32]} 47. Rxf5+ {[%emt 0:00:00]} Kh4 {[%emt 0:01:26]} 48. Bb5 {[%emt 0:00:00]} Kg4 {[%emt 0:00:44]} 49. Ke4 {[%emt 0:00:00]} Kg3 {[%emt 0:03:11]} 50. Rg5+ {[%emt 0:00:00]} Kh4 {[%emt 0:00:08]} 51. Rg7 {[%emt 0:00:00]} h5 {[%emt 0:01:40]} 52. Ke3 {[%emt 0:01:28]} Rh3+ {[%emt 0:02:04]} 53. Kxf2 {[%emt 0:00:15]} Rg3 {[%emt 0:00:40]} 54. Rh7 {[%emt 0:00:25]} Rc3 {[%emt 0:01:18]} 55. Be2 {[%emt 0:00:29]} Rc5 {[%emt 0:01:39]} 56. Rg7 {[%emt 0:01:38]} Rg5 {[%emt 0:00:51]} 57. Ra7 {[%emt 0:00:07]} Re5 {[%emt 0:00:40]} 58. Bf3 {[%emt 0:00:18]} Rc5 {[%emt 0:01:11]} 59. Ra4+ {[%emt 0:00:22]} Kg5 {[%emt 0:00:08]} 60. Kg3 {[%emt 0:00:04]} Rf5 {[%emt 0:00:46]} 61. Ra8 {[%emt 0:00:30]} h4+ {[%emt 0:00:47]} 62. Kg2 {[%emt 0:00:09]} Rf4 {[%emt 0:00:23]} 63. Rg8+ {[%emt 0:00:24]} Kf6 {[%emt 0:00:18]} 64. Kf2 {[%emt 0:01:02]} Rb4 {[%emt 0:01:13]} 65. Ke3 {[%emt 0:00:14]} Kf5 {[%emt 0:00:23]} 66. Rf8+ {[%emt 0:00:15]} Kg5 {[%emt 0:00:33]} 67. Be4 {[%emt 0:00:11]} Rb3+ {[%emt 0:01:19]} 68. Bd3 {[%emt 0:01:48]} Rb4 {[%emt 0:00:32]} 69. Rg8+ {[%emt 0:00:12]} Kf6 {[%emt 0:00:17]} 70. Be4 {[%emt 0:00:13]} h3 {[%emt 0:01:23]} 71. Rh8 {[%emt 0:00:35]} Ra4 {[%emt 0:00:39]} 72. Rxh3 {[%emt 0:00:11]} Ra3+ {[%emt 0:00:12]} 73. Bd3 {[%emt 0:00:04]} Ra4 {[%emt 0:00:33]} 74. Rh6+ {[%emt 0:00:29]} Ke5 {[%emt 0:00:11]} 75. Rh5+ {[%emt 0:00:08]} Kd6 {[%emt 0:00:28]} 76. Be4 {[%emt 0:00:08]} Ra1 {[%emt 0:00:10]} 77. Kf4 {[%emt 0:00:27]} Rf1+ {[%emt 0:00:12]} 78. Bf3 {[%emt 0:00:05]} Re1 {[%emt 0:00:31]} 79. Rd5+ {[%emt 0:00:43]} Ke6 {[%emt 0:00:13]} 80. Rc5 {[%emt 0:00:10]} Kf6 {[%emt 0:00:17]} 81. Rc3 {[%emt 0:00:27]} Rf1 {[%emt 0:01:30]} 82. Rc6+ {[%emt 0:00:37]} Ke7 {[%emt 0:00:01]} 83. Ke4 {[%emt 0:00:06]} Rf2 {[%emt 0:00:29]} 84. Bg4 {[%emt 0:01:27]} Rf1 {[%emt 0:00:35]} 85. Bf5 {[%emt 0:00:35]} Re1+ {[%emt 0:00:31]} 86. Kd5 {[%emt 0:00:29]} Kf7 {[%emt 0:00:58]} 87. Be4 {[%emt 0:00:19]} Rd1+ {[%emt 0:00:17]} 88. Ke5 {[%emt 0:00:04]} Rd7 {[%emt 0:00:11]} 89. Rh6 {[%emt 0:03:55]} Re7+ {[%emt 0:00:35]} 90. Kf5 {[%emt 0:00:06]} Ke8 {[%emt 0:01:11]} 91. Rd6 {[%emt 0:01:26]} Rf7+ {[%emt 0:00:37]} 92. Ke5 {[%emt 0:00:11]} 1/2-1/2

[Event "Czech Extraliga 2023-24"]
[Site "Czech Republic"]
[Date "2024.04.06"]
[Round "9.2"]
[White "Kempinski, Robert"]
[Black "Antoniewski, Rafal"]
[Result "1-0"]
[ECO "D27"]
[WhiteElo "2547"]
[BlackElo "2459"]
[Annotator "TA"]
[PlyCount "99"]
[EventDate "2023.10.14"]
[EventCountry "CZE"]
[SourceTitle "playchess.com"]
[Source "ChessBase"]
[SourceQuality "1"]
[TimeControl "40/5400+30:1800+30"]

{[%evp 19,99,35,41,32,33,24,33,16,35,24,35,0,0,0,32,31,31,29,12,26,23,18,35,15,13,6,8,17,13,14,42,37,50,56,77,62,58,62,93,72,68,62,83,60,99,72,95,64,108,116,122,89,171,177,239,239,277,279,337,323,346,339,332,328,388,385,393,391,393,392,385,385,393,393,393,393,385,261,309,302,300,300]} 1. Nf3 {[%emt 0:00:06]} Nf6 {[%emt 0:01:28]} 2. c4 {[%emt 0:01:03]} e6 {[%emt 0:00:19]} 3. Nc3 {[%emt 0:00:43]} d5 {[%emt 0:00:22]} 4. e3 {[%emt 0:01:24]} dxc4 {[%emt 0:03:30]} 5. Bxc4 {[%emt 0:03:10]} a6 {[%emt 0:00:22]} 6. O-O {[%emt 0:04:21]} c5 {[%emt 0:01:50]} 7. d4 {[%emt 0:05:39]} b5 {[%emt 0:04:42]} 8. Be2 {[%emt 0:01:06]} Bb7 {[%emt 0:00:14]} 9. dxc5 {[%emt 0:04:55]} Bxc5 {[%emt 0:06:38]} 10. Qxd8+ {[%emt 0:01:19]} Kxd8 {[%emt 0:00:03]} 11. Nd2 {[%emt 0:00:54]} Ke7 {[%emt 0:14:53]} 12. Nb3 {[%emt 0:01:33]} Bd6 {[%emt 0:00:35]} 13. Na5 {[%emt 0:02:08] White is slightly better.} Ra7 {[%emt 0:04:49]} 14. Bd2 {[%emt 0:09:17]} Nc6 {[%emt 0:13:01]} 15. Nxb7 {[%emt 0:02:38]} Rxb7 {[%emt 0:00:04]} 16. Rfc1 {[%emt 0:03:58][%cal Oc3b5,Bf1c1,Bc1c2,Bc2d2][%mdl 32]} Ne5 {[%emt 0:08:02]} 17. Nd1 {[%emt 0:06:48]} Ne4 {[%emt 0:06:56]} 18. Be1 {[%emt 0:05:46]} Nc5 {[%emt 0:00:31] ...Ned3 is the strong threat.} 19. Rc2 {[%emt 0:06:28]} Ncd3 {[%emt 0:03:54]} 20. Bc3 {[%emt 0:01:48]} Nb4 $1 {[%emt 0:01:20]} 21. Rd2 {[%emt 0:03:21][%cal Od2d6]} Nd5 {[%emt 0:00:38]} 22. Bd4 {[%emt 0:01:10]} Rc8 {[%emt 0:02:20]} 23. Nc3 {[%emt 0:03:00]} Nxc3 {[%emt 0:09:05]} 24. Bxc3 {[%emt 0:00:11]} f6 {[%emt 0:00:26]} 25. Rad1 {[%emt 0:03:08]} Nf7 {[%emt 0:00:47]} 26. Ba5 {[%emt 0:27:36]} Rbb8 27. a3 $1 Rc6 28. Bf3 Rc4 29. Bh5 {Strongly threatening Bxf7.} g6 30. Be2 $36 {[%mdl 2048] White fights for an advantage.} Rc6 {[#] Black is now going downhill.} 31. Bf3 $1 Rc4 32. g3 f5 33. Kg2 Rcc8 34. e4 {Black must now prevent exf5.} fxe4 35. Bxe4 Rc4 {[#]} (35... b4 $16) 36. Re2 $1 $18 Ra4 (36... Rcc8 $142 37. Bf3 Ng5) 37. Bc3 {Hoping for Bd5. This pair of bishops is nice.} b4 38. axb4 Bxb4 39. Bc6 Bxc3 40. Bxa4 Bxb2 41. Rb1 Rb4 42. Rbxb2 ({Don't take} 42. Rexb2 Rxa4 43. Rb7+ Kf6) 42... Rxa4 {[%mdl 4096] Endgame. KRR-KRN} 43. Rb7+ Kf6 44. Rb6 Nd8 45. Rd6 Ke7 46. Red2 Nf7 47. Rd7+ Kf6 48. R2d4 {Inhibits h5.} Ra5 49. Rf4+ Rf5 50. Rxf5+ {[%emt 0:17:44] Weighted Error Value: White=0.08 (flawless) /Black=0.18 (very precise) .  Mistake:       	---       	Black=2      Inaccurate:     	White=3     	Black=5      OK:         	White=24    	Black=14     Best:        	---       	Black=4      Strong:       	White=2     	Black=1} 1-0

[Event "Czech Extraliga 2023-24"]
[Site "Czech Republic"]
[Date "2024.04.06"]
[Round "9.2"]
[White "Mihok, Oliver"]
[Black "Michalik, Peter"]
[Result "1/2-1/2"]
[ECO "B30"]
[WhiteElo "2544"]
[BlackElo "2571"]
[Annotator "TA"]
[PlyCount "100"]
[EventDate "2023.10.14"]
[EventCountry "CZE"]
[SourceTitle "playchess.com"]
[Source "ChessBase"]
[SourceQuality "1"]
[TimeControl "40/5400+30:1800+30"]

{[%evp 10,100,31,16,43,26,25,27,20,17,14,14,20,20,61,14,0,7,72,71,84,82,84,90,78,86,86,71,69,52,93,69,81,83,79,85,84,67,59,26,17,27,31,8,22,7,8,2,8,0,0,0,0,0,0,-61,-61,-61,-8,-14,-8,-39,-39,-67,0,0,0,-14,7,0,0,0,0,0,300,8,8,0,0,0,0,0,0,0,8,0,0,0,0,0,0,0,8]} 1. e4 {[%emt 0:00:04]} c5 {[%emt 0:00:10]} 2. Nf3 {[%emt 0:00:13]} Nc6 {[%emt 0:00:06]} 3. Bb5 {[%emt 0:00:08]} e6 {[%emt 0:00:28]} 4. O-O {[%emt 0:00:44]} Nge7 {[%emt 0:00:07]} 5. d4 {[%emt 0:00:12]} cxd4 {[%emt 0:00:07]} 6. Nxd4 {[%emt 0:00:04]} Ng6 {[%emt 0:02:55]} 7. Be3 {[%emt 0:01:16]} Be7 {[%emt 0:00:27]} 8. Be2 {[%emt 0:02:19]} O-O {[%emt 0:01:28] White has an edge.} 9. c4 {[%emt 0:00:09]} b6 {[%emt 0:00:19]} 10. Nc3 {[%emt 0:00:39]} Bb7 {[%emt 0:00:39]} 11. Nb3 {[%emt 0:07:49]} Na5 {[%emt 0:10:05]} 12. Qd2 {[%emt 0:14:06]} (12. Nxa5 $14 {was preferrable.} bxa5 13. Qd2) 12... Nxb3 $11 {[%emt 0:08:24]} 13. axb3 {[%emt 0:03:20]} f5 {[%emt 0:00:59] [#]} (13... Bb4 $11) 14. exf5 $1 $16 {[%emt 0:01:21]} Nh4 {[%emt 0:00:08]} 15. fxe6 {[%emt 0:12:13]} Bxg2 {[%emt 0:09:35]} (15... Nxg2 $2 16. Qxd7 (16. exd7 Rf6 $14) 16... Qxd7 (16... Nxe3 $2 17. fxe3 Qxd7 18. exd7 $18) 17. exd7 $18) 16. Qxd7 $1 {[%emt 0:01:01]} Bxf1 {[%emt 0:01:00]} 17. Qxd8 {[%emt 0:05:11]} (17. Rxf1 Qe8 18. Qd3 Nf5 $17) (17. Bxf1 $2 Nf3+ 18. Kg2 Qb8 $19) 17... Raxd8 {[%emt 0:03:52]} 18. Bxf1 {[%emt 0:01:53]} Rde8 {[%emt 0:11:01]} 19. Nd5 {[%emt 0:08:04][%cal Of1h3]} (19. Rxa7 Bc5 $16) 19... Bd8 {[%emt 0:06:16]} 20. Bh3 {[%emt 0:02:57]} Nf5 $1 {[%emt 0:07:39]} 21. Rxa7 {[%emt 0:04:32] White has more active pieces.} Rxe6 {[%emt 0:00:13]} 22. Bxf5 {[%emt 0:01:07]} Rxf5 {[%emt 0:00:06]} 23. Ra8 {[%emt 0:00:05]} Rf8 {[%emt 0:00:23]} 24. Rb8 {[%emt 0:00:22][%cal Ob3b4]} Bf6 {[%emt 0:06:20]} 25. Rxb6 {[%emt 0:07:06]} Rxb6 {[%emt 0:00:25]} 26. Nxb6 $11 {[%emt 0:01:08][%mdl 4096] Endgame. next b4 is good for White. KRB-KBN} Kf7 {[%emt 0:00:27]} 27. Nd7 {[%emt 0:04:08]} Rc8 {[%emt 0:02:06]} 28. Nxf6 {[%emt 0:02:02]} Kxf6 {[%emt 0:00:31] KR-KB} 29. Bd4+ {[%emt 0:01:55]} Kf5 {[%emt 0:00:22]} 30. Kf1 {[%emt 0:02:00]} (30. Bxg7 $2 {is the wrong capture.} Rg8 31. b4 Rxg7+ 32. Kf1 Ke4 $19) 30... g5 {[%emt 0:00:34]} 31. Bc3 {[%emt 0:00:50]} Ke4 {[%emt 0:03:51]} 32. Ke2 {[%emt 0:01:00]} (32. Kg2 $11) 32... g4 $15 {[%emt 0:00:10][%mdl 1024] Black has compensation.} 33. Bd2 {[%emt 0:04:53]} Rc7 {[%emt 0:03:32]} (33... h5 $1 $15) 34. Ba5 {[%emt 0:02:23]} Rc6 {[%emt 0:01:54]} 35. Bd8 {[%emt 0:00:53]} Rh6 {[%emt 0:02:31]} 36. Bc7 {[%emt 0:00:49]} Rh3 {[%emt 0:03:27]} ({Black should play} 36... Rf6 $1 $15) 37. Bg3 $11 {[%emt 0:00:24] And now b4 would win.} Rh6 {[%emt 0:02:12]} 38. b4 {[%emt 0:01:13] Strongly threatening b5.} Ra6 {[%emt 0:00:23]} 39. Kd2 {[%emt 0:03:38]} Kd4 {[%emt 0:00:09]} 40. b5 {[%emt 0:01:36]} Rf6 {[%emt 0:06:32]} 41. b3 {[%emt 0:32:36] Black must now prevent Ke2.} h5 $2 {[%emt 0:30:51][%mdl 8192] [#]} (41... Rf3 $11 {and Black stays safe.}) 42. Kc2 $2 {[%emt 0:00:00]} (42. f4 $1 $18 {Hoping for Bf2+.} gxf3 43. Bf2+ Ke5 (43... Ke4 $2 44. b6 $18) 44. b4 (44. Ke3 Kd6 $16)) 42... Kc5 {[%emt 0:00:00] The position is equal.} 43. Kb2 {[%emt 0:00:00]} Rf7 {[%emt 0:00:00]} 44. Bh4 {[%emt 0:00:00]} Kb4 $1 {[%emt 0:00:00]} 45. Kc2 {[%emt 0:00:00]} Kc5 {[%emt 0:00:00]} 46. Bg3 {[%emt 0:00:00]} (46. Kc3 $5) 46... Rf6 {[%emt 0:00:00]} 47. Kc3 {[%emt 0:00:00] Threatens to win with f4.} Rf3+ {[%emt 0:00:00]} 48. Kb2 {[%emt 0:00:00]} Rf7 {[%emt 0:00:00]} 49. Kc1 {[%emt 0:00:00]} Rf3 {[%emt 0:00:00]} 50. Kc2 {[%emt 0:00:07]} Rf6 {Weighted Error Value: White=0.14 (very precise) /Black=0.20 (precise) .  Loses game:     	---       	Black=1      Missed win:     	White=1     	---        Mistake:       	White=2     	Black=3      Inaccurate:     	White=3     	Black=2      OK:         	White=16    	Black=24     Best:        	White=2     	Black=3      Strong:       	White=2     	Black=2} 1/2-1/2

[Event "Czech Extraliga 2023-24"]
[Site "Czech Republic"]
[Date "2024.04.06"]
[Round "9.3"]
[White "Hracek, Zbynek"]
[Black "L'Ami, Erwin"]
[Result "1/2-1/2"]
[ECO "B12"]
[WhiteElo "2549"]
[BlackElo "2627"]
[Annotator "TA"]
[PlyCount "54"]
[EventDate "2023.10.14"]
[EventCountry "CZE"]
[SourceTitle "playchess.com"]
[Source "ChessBase"]
[SourceQuality "1"]
[TimeControl "40/5400+30:1800+30"]

{[%evp 9,54,0,0,3,14,8,18,7,0,16,5,12,22,14,13,-12,-18,-9,0,0,0,0,0,0,10,0,0,-4,0,-11,-10,-37,0,0,0,-4,0,0,0,0,0,0,0,0,0,0,21]} 1. e4 {[%emt 0:00:04]} c6 {[%emt 0:00:10]} 2. d4 {[%emt 0:00:06]} d5 {[%emt 0:00:10]} 3. e5 {[%emt 0:00:34]} Bf5 {[%emt 0:00:11]} 4. h4 {[%emt 0:00:29]} h5 {[%emt 0:00:43]} 5. Bd3 {[%emt 0:02:00]} Bxd3 {[%emt 0:00:27]} 6. Qxd3 {[%emt 0:00:02][%cal Oe5e6] Strongly threatening e6!} Qa5+ {[%emt 0:00:23]} 7. Bd2 {[%emt 0:03:23]} Qa6 {[%emt 0:01:29] [#]} 8. e6 $1 {[%emt 0:00:34] exf7+ is the strong threat.} Qxd3 {[%emt 0:01:59]} 9. exf7+ {[%emt 0:00:57]} Kxf7 {[%emt 0:00:08]} 10. cxd3 {[%emt 0:00:06]} Nh6 {[%emt 0:04:44]} 11. Nf3 {[%emt 0:00:25]} Nd7 {[%emt 0:03:31]} 12. O-O {[%emt 0:02:20]} Nf5 {[%emt 0:05:15]} 13. g3 {[%emt 0:05:33]} g6 {[%emt 0:06:42]} 14. Re1 {[%emt 0:04:20]} Bg7 {[%emt 0:02:46]} 15. Bc3 {[%emt 0:00:15]} Bf6 {[%emt 0:06:27]} 16. Nbd2 {[%emt 0:02:37]} a5 {[%emt 0:13:25]} 17. a4 {[%emt 0:17:21]} b6 {[%emt 0:03:56]} 18. Nb3 {[%emt 0:03:00]} Rhc8 {[%emt 0:04:56]} 19. Rac1 {[%emt 0:17:00]} c5 {[%emt 0:10:11]} 20. dxc5 {[%emt 0:00:10]} Nxc5 {[%emt 0:01:23]} 21. Nxc5 {[%emt 0:00:24] The position is equal.} bxc5 {[%emt 0:00:39]} 22. Re2 {[%emt 0:02:55][%cal Be1e2,Be2c2,Bc2c5,Bc5d5][%mdl 32]} Nd4 {[%emt 0:03:26] Dodges Rec2} 23. Bxd4 {[%emt 0:04:18]} cxd4 {[%emt 0:00:09]} 24. Rec2 {[%emt 0:00:08]} Rcb8 {[%emt 0:02:29]} 25. Rc5 {[%emt 0:07:54]} Rxb2 {[%emt 0:10:01]} 26. Rxd5 {[%emt 0:00:48]} Rb4 {[%emt 0:00:24]} 27. Rc4 {[%emt 0:09:27]} Ke6 {[%emt 0:02:26] An uneventful encounter.   Weighted Error Value: White=0.06 (flawless) /Black=0.05 (flawless) .  Inaccurate:     	White=1     	Black=1      OK:         	White=8     	Black=8      Best:        	White=1     	Black=1} 1/2-1/2

[Event "Czech Extraliga 2023-24"]
[Site "Czech Republic"]
[Date "2024.04.06"]
[Round "9.3"]
[White "Jaracz, Pawel"]
[Black "Plat, Vojtech"]
[Result "1/2-1/2"]
[ECO "C41"]
[WhiteElo "2472"]
[BlackElo "2506"]
[Annotator "TA"]
[PlyCount "36"]
[EventDate "2023.10.14"]
[EventCountry "CZE"]
[SourceTitle "playchess.com"]
[Source "ChessBase"]
[SourceQuality "1"]
[TimeControl "40/5400+30:1800+30"]

{[%evp 11,36,21,29,19,37,25,72,76,67,3,32,18,39,29,35,20,42,28,26,22,58,60,70,73,64,52,77]} 1. e4 {[%emt 0:00:18]} e5 {[%emt 0:00:31]} 2. Nf3 {[%emt 0:00:20][%cal Bg1f3,Bf3d4,Bd4b3][%mdl 32]} d6 {[%emt 0:00:06]} 3. d4 {[%emt 0:02:16]} exd4 {[%emt 0:00:07]} 4. Nxd4 {[%emt 0:00:07]} Nf6 {[%emt 0:00:05]} 5. Nc3 {[%emt 0:00:04]} Be7 {[%emt 0:00:04]} 6. Be2 {[%emt 0:03:28]} O-O {[%emt 0:00:42]} 7. Bf4 {[%emt 0:00:06]} a6 {[%emt 0:03:41]} 8. Qd2 {[%emt 0:04:39]} c5 {[%emt 0:09:05]} (8... Nc6 $11) 9. Nb3 $16 {[%emt 0:12:03] White is better.} b5 {[%emt 0:05:10]} 10. Bf3 {[%emt 0:11:03] White is more active.} ({White should play} 10. Rd1 $14) 10... Ra7 {[%emt 0:19:45]} (10... b4 $5 11. Ne2 Nbd7 $15) 11. O-O {[%emt 0:09:17]} b4 {[%emt 0:06:24]} 12. Ne2 {[%emt 0:01:16]} Nc6 {[%emt 0:07:47][%cal Bb8c6,Bc6e5,Be5g4][%mdl 32]} 13. a3 {[%emt 0:17:41]} bxa3 {[%emt 0:06:42]} 14. Rxa3 {[%emt 0:00:41]} Be6 {[%emt 0:02:21]} 15. Rd1 {[%emt 0:03:45]} Qb6 {[%emt 0:01:16]} 16. Nc3 {[%emt 0:01:17]} (16. Bxd6 $2 {too greedy.} Bxd6 (16... Rd7 $2 17. e5 $19) 17. Qe3 (17. Qxd6 $2 {loses.} Rd7 $19) 17... Ne5 $19) 16... Ne5 {[%emt 0:01:40]} 17. Be2 {[%emt 0:00:22]} Raa8 {[%emt 0:10:21]} 18. Qe3 {[%emt 0:06:09]} Neg4 {[%emt 0:05:58] Weighted Error Value: White=0.13 (very precise) /Black=0.13 (very precise) .  Mistake:       	White=1     	Black=1      Inaccurate:     	---       	Black=2      OK:         	White=5     	Black=3      Best:        	White=1     	---} 1/2-1/2